bitfinex-derivatives/quotes_SOLF0:USTF0_20260227
["timestamp","ask_amount","ask_price","bid_price","bid_amount"]
[1772186022901,3.82718465,86.369,86.326,3.22778666]
[1772186024103,3.82718465,86.369,86.328,10.4249]
[1772186024502,3.82718465,86.369,86.334,10.4242]
[1772186024703,7.25383895,86.38,86.335,3.24570974]
[1772186025599,3.4266543,86.39,86.34,3.24570974]
[1772186025796,3.82718465,86.389,86.34,3.24570974]
[1772186026397,10.4184,86.383,86.341,10.4234]
[1772186026604,3.82718465,86.389,86.341,10.4234]
[1772186026805,3.82718465,86.389,86.342,3.23552234]
[1772186026998,3.4266543,86.38,86.342,3.23552234]
[1772186027910,3.4266543,86.38,86.347,3.23552234]
[1772186028101,3.82718465,86.389,86.347,3.23552234]
[1772186028300,3.4266543,86.4,86.347,3.23552234]
[1772186029005,3.4266543,86.4,86.363,3.24064291]
[1772186029207,3.82718465,86.402,86.363,3.24064291]
[1772186029804,31.26031787,86.447,86.353,10.4219]
[1772186029805,3.82718465,86.399,86.353,10.4219]
[1772186030008,3.82718465,86.399,86.354,3.24064291]
[1772186030809,10.4166,86.398,86.354,3.24064291]
[1772186031009,3.82718465,86.397,86.354,3.24064291]
[1772186031405,14.24388465,86.397,86.355,10.4216]
[1772186031806,14.24388465,86.397,86.355,13.67968117]
[1772186032911,3.82718465,86.397,86.359,10.4212]
[1772186033209,3.82718465,86.397,86.35,3.4266543]
[1772186033210,3.82718465,86.397,86.36,3.27423517]
[1772186035106,3.82718465,86.397,86.36,13.69533517]
[1772186036012,3.82718465,86.397,86.36,3.27423517]
[1772186037309,3.82718465,86.397,86.361,10.421]
[1772186043906,3.82718465,86.397,86.363,10.4208]
[1772186046511,3.82718465,86.397,86.362,3.31589879]
[1772186053425,3.82718465,86.397,86.304,62.98412064]
[1772186053426,3.75165031,86.389,86.349,3.24758555]
[1772186053716,3.75165031,86.427,86.371,3.24758555]
[1772186053921,3.75165031,86.427,86.381,3.24758555]
[1772186054622,10.4132,86.426,86.386,3.2506097]
[1772186055217,10.4137,86.422,86.386,3.2506097]
[1772186055622,3.75165031,86.425,86.386,3.2506097]
[1772186056919,3.75165031,86.425,86.387,13.64339551]
[1772186057221,3.75165031,86.425,86.388,3.22559551]
[1772186057411,3.75165031,86.45,86.414,10.4146]
[1772186057610,3.75165031,86.45,86.414,13.64019551]
[1772186057815,3.4266543,86.46,86.415,3.22559551]
[1772186058016,3.75165031,86.449,86.405,10.4156]
[1772186058824,3.75165031,86.449,86.406,3.25761445]
[1772186060027,3.75165031,86.449,86.409,3.25761445]
[1772186060925,3.75165031,86.449,86.413,10.4146]
[1772186063224,3.75165031,86.449,86.397,3.27363609]
[1772186063425,3.75165031,86.409,86.368,3.27363609]
[1772186063732,3.75165031,86.399,86.341,3.27363609]
[1772186064630,3.75165031,86.399,86.353,10.4219]
[1772186064821,3.75165031,86.399,86.341,3.27363609]
[1772186064822,3.75165031,86.399,86.354,3.26672889]
[1772186066030,3.75165031,86.399,86.359,10.4212]
[1772186066327,3.75165031,86.399,86.359,13.68792889]
[1772186067121,3.75165031,86.399,86.342,3.25855295]
[1772186067322,3.42621037,86.37,86.334,10.4242]
[1772186068623,3.42621037,86.37,86.335,3.24769321]
[1772186070626,10.4202,86.369,86.335,3.24769321]
[1772186070933,3.42621037,86.36,86.335,3.24769321]
[1772186071730,3.42621037,86.36,86.32,3.30035364]
[1772186071928,3.42621037,86.37,86.323,3.30035364]
[1772186072931,3.42621037,86.37,86.327,3.30050991]
[1772186073730,3.42621037,86.36,86.327,3.30050991]
[1772186073922,3.42621037,86.36,86.315,3.30050991]
[1772186074930,3.42621037,86.36,86.317,3.30141258]
[1772186075928,3.75165031,86.365,86.317,3.30141258]
[1772186076631,3.42621037,86.35,86.304,3.29382195]
[1772186077139,3.42621037,86.36,86.321,10.4258]
[1772186077333,7.17786068,86.36,86.321,10.4258]
[1772186077931,7.17786068,86.36,86.323,13.71932195]
[1772186078128,3.42621037,86.36,86.323,13.71932195]
[1772186078536,3.42621037,86.34,86.304,3.30997384]
[1772186078737,20.8318,86.404,86.262,34.74]
[1772186078738,3.75165031,86.339,86.285,3.30997384]
[1772186078934,3.42621037,86.33,86.285,3.30997384]
[1772186079436,3.67043731,86.352,86.301,3.31341223]
[1772186079637,3.67043731,86.349,86.301,3.31341223]
[1772186079842,7.09664768,86.34,86.301,3.31341223]
[1772186082437,3.42621037,86.33,86.282,3.31152242]
[1772186082638,10.4244,86.333,86.282,3.31152242]
[1772186083939,10.4244,86.333,86.285,3.31795679]
[1772186084141,3.61186097,86.332,86.285,3.31795679]
[1772186084736,3.61186097,86.329,86.285,3.31795679]
[1772186085140,10.4251,86.328,86.285,3.31795679]
[1772186085532,3.61186097,86.327,86.278,10.431]
[1772186086644,3.61186097,86.327,86.278,13.7331917]
[1772186087144,3.61186097,86.309,86.258,3.3021917]
[1772186087443,3.61186097,86.309,86.268,3.3021917]
[1772186087645,3.42621037,86.31,86.219,3.3021917]
[1772186087646,14.03926097,86.308,86.219,3.3021917]
[1772186087844,14.03926097,86.308,86.251,3.3021917]
[1772186088040,3.61186097,86.307,86.253,3.3021917]
[1772186089040,3.61186097,86.299,86.253,3.3021917]
[1772186089240,3.42621037,86.31,86.255,3.32362039]
[1772186089441,3.61186097,86.299,86.242,3.32362039]
[1772186089938,3.42621037,86.31,86.254,3.32362039]
[1772186090149,13.91691119,86.397,86.208,5.21081389]
[1772186090150,3.61186097,86.279,86.209,3.32362039]
[1772186090345,3.42621037,86.28,86.231,3.32362039]
[1772186091048,7.03807134,86.28,86.231,3.32362039]
[1772186091245,3.42621037,86.29,86.231,3.32362039]
[1772186091450,3.61186097,86.289,86.231,3.32362039]
[1772186091645,3.61186097,86.269,86.202,3.34371687]
[1772186091848,3.61186097,86.269,86.149,309.60978088]
[1772186091849,3.61186097,86.259,86.211,3.34371687]
[1772186092044,7.03807134,86.25,86.2,6.76992724]
[1772186092239,3.61186097,86.249,86.21,3.42621037]
[1772186092554,3.61186097,86.239,86.19,3.42621037]
[1772186092739,3.61186097,86.253,86.21,3.42621037]
[1772186092943,3.61186097,86.253,86.151,162.4992]
[1772186092944,3.61186097,86.253,86.22,3.42621037]
[1772186093144,3.61186097,86.269,86.22,3.42621037]
[1772186093743,3.61186097,86.267,86.211,3.1479329]
[1772186094353,3.61186097,86.267,86.22,3.42621037]
[1772186095550,3.61186097,86.29,86.241,3.10867101]
[1772186095854,3.61186097,86.289,86.241,3.10867101]
[1772186097543,3.61186097,86.289,86.25,3.42621037]
[1772186098752,3.61186097,86.289,86.242,10.4353]
[1772186099356,3.61186097,86.287,86.241,3.10867101]
[1772186099955,3.61186097,86.287,86.24,3.42621037]
[1772186100151,3.61186097,86.287,86.232,10.4366]
[1772186100152,3.61186097,86.279,86.232,10.4366]
[1772186100349,3.61186097,86.279,86.23,3.42621037]
[1772186101558,3.61186097,86.294,86.25,3.42621037]
[1772186101952,3.61186097,86.294,86.26,3.42621037]
[1772186102159,449.23788784,86.3,86.27,3.42621037]
[1772186102363,3.61186097,86.309,86.27,3.42621037]
[1772186102857,3.61186097,86.309,86.261,3.03267945]
[1772186103057,3.61186097,86.309,86.25,3.42621037]
[1772186103250,3.61186097,86.309,86.27,3.42621037]
[1772186103448,3.42621037,86.32,86.27,3.42621037]
[1772186103650,3.61186097,86.319,86.261,3.03223869]
[1772186103854,3.42621037,86.32,86.262,10.4329]
[1772186103855,3.61186097,86.317,86.262,10.4329]
[1772186104249,3.61186097,86.317,86.261,13.46523869]
[1772186104652,3.61186097,86.309,86.26,3.42621037]
[1772186106954,3.61186097,86.322,86.27,3.42621037]
[1772186107255,3.61186097,86.322,86.207,162.3944]
[1772186107256,3.61186097,86.322,86.28,3.42621037]
[1772186107458,3.61186097,86.319,86.26,6.3838172]
[1772186107658,3.61186097,86.319,86.28,3.42621037]
[1772186107859,3.61186097,86.319,86.255,2.95760683]
[1772186108054,5.21388297,86.377,86.255,2.95760683]
[1772186108055,3.61186097,86.309,86.26,3.42621037]
[1772186109361,3.61186097,86.309,86.269,10.432]
[1772186109950,3.42621037,86.32,86.27,3.42621037]
[1772186110153,3.42621037,86.31,86.26,3.42621037]
[1772186110553,3.61126407,86.309,86.26,3.42621037]
[1772186110863,3.61126407,86.309,86.259,2.97036192]
[1772186111063,3.61126407,86.299,86.25,3.42621037]
[1772186111362,3.61126407,86.297,86.25,13.86051037]
[1772186111962,3.61126407,86.297,86.251,2.93498546]
[1772186113856,3.61126407,86.297,86.252,10.4342]
[1772186114654,3.61126407,86.297,86.251,2.93498546]
[1772186114854,3.61126407,86.329,86.271,3.023085]
[1772186115058,3.61126407,86.329,86.28,3.42621037]
[1772186115855,3.61126407,86.329,86.285,10.4302]
[1772186116257,3.61126407,86.329,86.271,3.023085]
[1772186117653,3.42621037,86.34,86.291,3.02706509]
[1772186117851,3.42621037,86.34,86.29,3.42621037]
[1772186117852,3.61126407,86.339,86.28,3.42621037]
[1772186118053,3.61126407,86.339,86.281,3.02706509]
[1772186118258,3.61126407,86.339,86.292,10.4293]
[1772186120568,3.61126407,86.339,86.3,3.42621037]
[1772186120866,3.61126407,86.339,86.29,3.42621037]
[1772186121063,3.61126407,86.339,86.302,10.4281]
[1772186121267,3.61126407,86.339,86.29,3.42621037]
[1772186121464,3.61126407,86.339,86.281,3.02706509]
[1772186121667,3.61126407,86.339,86.29,3.42621037]
[1772186122165,3.61126407,86.339,86.281,3.02706509]
[1772186122465,3.61126407,86.329,86.281,3.02706509]
[1772186122670,3.61126407,86.319,86.269,10.432]
[1772186123267,3.61126407,86.319,86.271,10.4318]
[1772186125473,3.61126407,86.299,86.25,3.43625922]
[1772186125664,3.61126407,86.299,86.251,3.0003791]
[1772186125866,3.61126407,86.299,86.258,10.4333]
[1772186126271,3.61126407,86.299,86.261,10.433]
[1772186127970,3.61126407,86.314,86.27,10.4319]
[1772186128273,3.61126407,86.309,86.264,2.99924071]
[1772186128672,3.61126407,86.307,86.264,2.99924071]
[1772186128873,3.61126407,86.307,86.26,3.43625922]
[1772186129575,3.61126407,86.307,86.265,10.4326]
[1772186130880,3.61126407,86.318,86.272,13.49810609]
[1772186131076,3.61126407,86.309,86.26,3.06640609]
[1772186131378,3.61126407,86.309,86.261,10.4331]
[1772186131573,3.61126407,86.309,86.26,3.06640609]
[1772186131574,3.61126407,86.309,86.27,3.43625922]
[1772186131773,3.43625922,86.33,86.281,3.06640609]
[1772186132276,3.61126407,86.337,86.292,10.4293]
[1772186132983,3.61126407,86.337,86.299,10.4284]
[1772186133274,3.61126407,86.337,86.3,3.43625922]
[1772186133474,3.61126407,86.337,86.3,13.86455922]
[1772186133871,3.61126407,86.356,86.3,13.86455922]
[1772186134078,3.61126407,86.356,86.311,10.427]
[1772186134373,3.61126407,86.356,86.31,3.43625922]
[1772186134871,3.43625922,86.37,86.321,10.4258]
[1772186135271,7.04752329,86.37,86.321,10.4258]
[1772186136676,3.61126407,86.369,86.321,10.4258]
[1772186137577,3.61126407,86.369,86.329,10.4249]
[1772186137778,3.43625922,86.38,86.33,6.55296191]
[1772186137980,7.04752329,86.38,86.33,6.55296191]
[1772186138878,3.83826111,86.379,86.333,10.4244]
[1772186139379,3.83826111,86.392,86.35,3.43625922]
[1772186139882,3.83826111,86.406,86.361,3.10890626]
[1772186140072,3.43625922,86.42,86.37,6.54516548]
[1772186140774,3.81193688,86.419,86.37,6.54516548]
[1772186140976,3.81193688,86.419,86.371,3.1333164]
[1772186141884,3.81193688,86.419,86.373,3.1333164]
[1772186143380,3.81193688,86.434,86.381,3.11656691]
[1772186143779,3.81193688,86.434,86.39,3.43625922]
[1772186144176,3.81193688,86.434,86.383,3.11656691]
[1772186144378,3.81193688,86.434,86.384,10.4182]
[1772186144877,3.81193688,86.434,86.391,3.12833765]
[1772186145079,3.81193688,86.434,86.394,10.417]
[1772186145381,3.81193688,86.449,86.4,3.43625922]
[1772186145581,3.81193688,86.449,86.41,3.43625922]
[1772186145978,3.81193688,86.439,86.39,3.43625922]
[1772186146286,3.81193688,86.439,86.4,3.43625922]
[1772186146676,3.81193688,86.439,86.401,10.4162]
[1772186146882,3.81193688,86.459,86.401,10.4162]
[1772186147081,3.81193688,86.459,86.41,3.43625922]
[1772186147777,3.81193688,86.459,86.411,3.13550321]
[1772186148181,3.81193688,86.469,86.42,3.43625922]
[1772186148488,3.43625922,86.46,86.414,10.4146]
[1772186148888,3.43625922,86.46,86.415,3.125663]
[1772186149183,3.81193688,86.469,86.418,10.4141]
[1772186149389,3.81193688,86.469,86.419,3.125663]
[1772186150488,3.81193688,86.491,86.43,3.125663]
[1772186150883,3.81193688,86.49,86.441,10.4113]
[1772186151390,3.81193688,86.49,86.411,3.15671513]
[1772186151586,3.81193688,86.478,86.429,10.4128]
[1772186152182,3.81193688,86.478,86.436,10.4119]
[1772186153086,3.81193688,86.478,86.415,3.16443426]
[1772186153282,3.81193688,86.478,86.401,3.16443426]
[1772186153688,3.81193688,86.459,86.402,10.416]
[1772186154388,3.81193688,86.451,86.402,10.416]
[1772186154990,3.81193688,86.466,86.41,3.1572127]
[1772186156988,3.81193688,86.464,86.41,3.1572127]
[1772186158087,3.81193688,86.461,86.41,3.1572127]
[1772186158487,3.81193688,86.459,86.401,10.4161]
[1772186158685,3.81193688,86.451,86.401,10.4161]
[1772186158891,3.81193688,86.451,86.401,13.61296986]
[1772186159088,3.81193688,86.451,86.404,10.4158]
[1772186160390,3.81193688,86.451,86.405,3.19686986]
[1772186160589,3.81193688,86.451,86.407,10.4154]
[1772186160786,3.81193688,86.451,86.407,13.63950542]
[1772186160992,3.81193688,86.466,86.408,3.22410542]
[1772186161195,3.81193688,86.464,86.412,3.22410542]
[1772186161695,3.81193688,86.459,86.397,3.22410542]
[1772186162296,10.4099,86.453,86.403,10.4158]
[1772186162592,10.4099,86.453,86.403,13.66754136]
[1772186162792,3.81193688,86.459,86.403,13.66754136]
[1772186163198,3.81193688,86.459,86.409,10.4152]
[1772186163387,3.81193688,86.459,86.409,13.66694136]
[1772186164193,3.81193688,86.459,86.417,3.25174136]
[1772186164394,3.81193688,86.479,86.417,3.25174136]
[1772186164995,3.81193688,86.469,86.426,10.4131]
[1772186165602,9.17370938,86.48,86.417,3.25174136]
[1772186166400,3.81193688,86.484,86.43,3.25157108]
[1772186167104,3.81193688,86.484,86.445,10.4109]
[1772186167899,3.81193688,86.498,86.45,3.26382645]
[1772186169004,3.81193688,86.498,86.455,10.4096]
[1772186169199,449.24333536,86.525,86.392,34.74]
[1772186169200,3.42291626,86.48,86.434,3.32062406]
[1772186169404,7.23485314,86.48,86.434,3.32062406]
[1772186170307,3.42291626,86.47,86.434,3.32062406]
[1772186173413,3.86244081,86.469,86.428,10.4128]
[1772186173616,3.86244081,86.469,86.42,3.42291626]
[1772186173617,3.42291626,86.46,86.42,10.4138]
[1772186173808,3.42291626,86.46,86.421,3.31031663]
[1772186174606,3.42291626,86.46,86.422,10.4136]
[1772186175216,3.86244081,86.469,86.426,3.29573085]
[1772186175416,3.42291626,86.47,86.426,3.29573085]
[1772186176419,3.42291626,86.47,86.435,10.412]
[1772186177013,3.42291626,86.48,86.436,3.30889384]
[1772186177219,7.28535707,86.49,86.436,3.30889384]
[1772186177414,10.39185853,86.548,86.436,3.30889384]
[1772186177415,3.86244081,86.479,86.436,3.30889384]
[1772186177718,7.28535707,86.49,86.445,10.4109]
[1772186178120,3.42291626,86.48,86.445,10.4109]
[1772186178308,7.28535707,86.49,86.445,10.4109]
[1772186178510,7.28535707,86.49,86.452,10.41]
[1772186178912,3.42291626,86.5,86.453,3.26737428]
[1772186179315,7.28535707,86.5,86.453,3.26737428]
[1772186179723,3.86244081,86.499,86.453,3.26737428]
[1772186179922,3.86244081,86.499,86.455,10.4096]
[1772186180216,3.86244081,86.499,86.453,3.26737428]
[1772186180622,3.42291626,86.49,86.453,3.26737428]
[1772186181120,3.86244081,86.499,86.453,3.26737428]
[1772186181621,3.86244081,86.489,86.431,3.26286657]
[1772186182020,3.86244081,86.489,86.441,3.26286657]
[1772186182420,3.42291626,86.49,86.441,3.26286657]
[1772186182722,3.42291626,86.48,86.441,3.26286657]
[1772186182919,7.28535707,86.48,86.43,3.42291626]
[1772186183318,3.86244081,86.48,86.442,10.4112]
[1772186184519,7.28578945,86.49,86.445,3.26128031]
[1772186184710,3.86244081,86.489,86.445,3.26128031]
[1772186185415,3.86244081,86.489,86.43,3.42334864]
[1772186185416,3.42334864,86.47,86.421,3.24292136]
[1772186185621,3.42334864,86.46,86.421,3.24292136]
[1772186186626,3.42334864,86.46,86.423,10.4135]
[1772186192720,3.42334864,86.46,86.421,3.24292136]
[1772186192920,13.83244864,86.46,86.421,3.24292136]
[1772186193121,3.42334864,86.46,86.421,3.24292136]
[1772186193923,3.42334864,86.46,86.428,10.4128]
[1772186194228,3.86244081,86.469,86.428,10.4128]
[1772186194530,3.42334864,86.44,86.401,3.19587241]
[1772186195028,3.42334864,86.44,86.402,10.416]
[1772186198335,3.86244081,86.429,86.371,3.28339465]
[1772186198727,3.7132373,86.419,86.372,10.4196]
[1772186198940,3.42334864,86.41,86.372,10.4196]
[1772186199138,3.42334864,86.41,86.371,3.28339465]
[1772186200938,3.42334864,86.41,86.371,13.70319465]
[1772186201137,3.42334864,86.44,86.39,3.42334864]
[1772186201337,8.87169134,86.461,86.339,55.5873]
[1772186201338,3.42334864,86.43,86.391,3.3153671]
[1772186201643,3.42334864,86.43,86.4,10.4163]
[1772186202544,10.4096,86.456,86.339,55.5873]
[1772186202545,7.27919723,86.45,86.404,10.4157]
[1772186203539,7.27919723,86.44,86.396,10.4167]
[1772186205442,3.42334864,86.42,86.371,3.33393621]
[1772186205846,3.42334864,86.41,86.371,3.33393621]
[1772186206540,3.42334864,86.41,86.38,10.4187]
[1772186208445,3.42334864,86.42,86.387,10.4178]
[1772186209046,3.42334864,86.41,86.371,3.33393621]
[1772186209446,3.85584859,86.419,86.371,3.33393621]
[1772186209647,3.85584859,86.419,86.379,10.4188]
[1772186209846,3.42334864,86.41,86.371,3.33393621]
[1772186210140,3.85584859,86.419,86.371,3.33393621]
[1772186211748,3.42334864,86.42,86.386,10.4179]
[1772186212042,3.85584859,86.429,86.386,10.4179]
[1772186213551,3.42334864,86.42,86.386,10.4179]
[1772186213950,3.85584859,86.429,86.386,10.4179]
[1772186214249,3.42334864,86.42,86.386,10.4179]
[1772186214843,3.42334864,86.43,86.385,3.34247351]
[1772186216044,3.42334864,86.43,86.391,10.4173]
[1772186216645,3.85584859,86.439,86.391,10.4173]
[1772186218953,3.85584859,86.435,86.385,3.34247351]
[1772186219154,3.42334864,86.43,86.385,3.34247351]
[1772186219546,3.42334864,86.43,86.387,13.77129738]
[1772186221554,3.85584859,86.435,86.387,13.77129738]
[1772186221758,3.42334864,86.43,86.387,13.77129738]
[1772186222750,3.85584859,86.429,86.387,3.35339738]
[1772186223450,10.4129,86.428,86.387,3.35339738]
[1772186224452,10.4151,86.41,86.372,3.34944376]
[1772186224658,3.85584859,86.399,86.357,3.34944376]
[1772186224953,3.85584859,86.399,86.341,3.34944376]
[1772186225151,3.42334864,86.4,86.366,10.4204]
[1772186225851,3.42334864,86.4,86.351,3.34944376]
[1772186226058,3.85584859,86.399,86.351,3.34944376]
[1772186226758,7.27919723,86.39,86.351,3.34944376]
[1772186229960,3.8344008,86.389,86.344,10.423]
[1772186230159,3.8344008,86.389,86.351,10.4222]
[1772186231960,3.8344008,86.406,86.351,3.32030957]
[1772186232959,3.8344008,86.406,86.364,10.4206]
[1772186234660,3.8344008,86.406,86.351,3.32030957]
[1772186234661,3.8344008,86.406,86.371,10.4198]
[1772186235459,3.8344008,86.406,86.365,3.32371959]
[1772186236863,3.8344008,86.406,86.368,10.4201]
[1772186237263,3.8344008,86.406,86.36,3.42334864]
[1772186237567,3.8344008,86.389,86.349,10.4224]
[1772186237754,3.8344008,86.389,86.337,3.31984123]
[1772186237956,7.25774944,86.4,86.341,3.31984123]
[1772186238563,3.8344008,86.399,86.341,3.31984123]
[1772186238960,3.42334864,86.39,86.349,10.4224]
[1772186239356,3.42334864,86.39,86.349,13.70711805]
[1772186241061,3.8344008,86.397,86.349,13.70711805]
[1772186244170,3.8344008,86.397,86.319,196.76104183]
[1772186244171,3.42334864,86.41,86.351,3.28974094]
[1772186244368,3.8344008,86.409,86.351,3.28974094]
[1772186244570,3.42334864,86.4,86.351,3.28974094]
[1772186244765,3.42334864,86.4,86.319,196.76104183]
[1772186244766,3.8344008,86.389,86.34,3.42334864]
[1772186244970,3.8344008,86.389,86.338,3.26993197]
[1772186245874,3.8344008,86.389,86.345,10.4229]
[1772186247172,3.8344008,86.389,86.351,10.4221]
[1772186250579,3.8344008,86.389,86.344,10.423]
[1772186251079,3.8344008,86.389,86.35,10.4223]
[1772186252776,3.8344008,86.389,86.343,10.4231]
[1772186253476,3.8344008,86.389,86.34,3.24516943]
[1772186254076,3.8344008,86.389,86.341,10.4233]
[1772186254281,3.8344008,86.389,86.341,13.66889073]
[1772186254580,3.8344008,86.389,86.345,10.4229]
[1772186255479,3.8344008,86.389,86.351,13.73994795]
[1772186255687,3.8344008,86.399,86.352,3.31784795]
[1772186256679,3.8344008,86.399,86.355,10.4216]
[1772186256983,3.8344008,86.399,86.355,13.73909158]
[1772186257379,3.8344008,86.399,86.362,10.4209]
[1772186258385,3.8344008,86.397,86.355,3.31749158]
[1772186259685,3.84488292,86.388,86.342,3.31706619]
[1772186260180,3.70955314,86.381,86.331,3.31764899]
[1772186261183,3.70955314,86.381,86.336,3.33735441]
[1772186261378,3.70955314,86.393,86.341,3.33735441]
[1772186261878,3.70955314,86.391,86.348,10.4225]
[1772186262076,3.70955314,86.389,86.341,3.33735441]
[1772186262784,3.70955314,86.379,86.321,3.32533084]
[1772186263584,3.70955314,86.369,86.324,10.4255]
[1772186263880,3.70955314,86.369,86.321,3.32533084]
[1772186264087,3.70955314,86.359,86.316,10.4264]
[1772186265786,3.43078416,86.37,86.321,3.34207527]
[1772186265986,3.70955314,86.369,86.321,3.34207527]
[1772186266988,3.70955314,86.369,86.325,10.4253]
[1772186267883,3.70955314,86.389,86.335,3.31592083]
[1772186268078,3.70955314,86.389,86.34,3.43078416]
[1772186268282,3.70955314,86.388,86.34,3.43078416]
[1772186268479,3.70955314,86.388,86.335,3.31592083]
[1772186270097,3.70955314,86.388,86.344,10.423]
[1772186271785,3.70955314,86.388,86.351,3.30888951]
[1772186271982,3.70955314,86.399,86.351,3.30888951]
[1772186272879,3.70955314,86.399,86.357,10.4215]
[1772186273787,3.70955314,86.399,86.36,3.32762476]
[1772186273987,3.70955314,86.399,86.359,10.4212]
[1772186274590,3.70955314,86.397,86.351,13.74972476]
[1772186274890,3.70955314,86.397,86.352,3.34039127]
[1772186276987,10.417,86.395,86.352,13.76249127]
[1772186277196,3.70955314,86.397,86.353,3.3387698]
[1772186278994,3.70955314,86.397,86.354,13.74930851]
[1772186279197,3.70955314,86.397,86.355,3.32750851]
[1772186279894,3.70955314,86.395,86.355,3.32750851]
[1772186280488,3.70955314,86.369,86.327,3.30786741]
[1772186281791,3.70955314,86.369,86.328,10.4249]
[1772186281991,3.70955314,86.369,86.329,3.30786741]
[1772186282191,3.43078416,86.38,86.329,3.30786741]
[1772186282592,3.43078416,86.38,86.337,10.4239]
[1772186282790,3.70955314,86.379,86.338,3.29342338]
[1772186283899,3.70955314,86.379,86.321,3.29342338]
[1772186284601,3.70955314,86.369,86.327,10.425]
[1772186286803,3.70955314,86.367,86.321,3.29342338]
[1772186287503,3.70955314,86.367,86.323,10.4255]
[1772186287903,3.70955314,86.367,86.323,13.72980956]
[1772186289905,10.4194,86.375,86.31,3.43078416]
[1772186289906,3.66430935,86.359,86.315,10.4265]
[1772186292201,3.66430935,86.359,86.315,13.74876952]
[1772186293815,3.66430935,86.349,86.302,3.29539614]
[1772186294021,3.43078416,86.34,86.302,3.29539614]
[1772186294917,7.09509351,86.34,86.302,3.29539614]
[1772186295112,3.43078416,86.35,86.302,3.29539614]
[1772186295314,3.66430935,86.353,86.302,3.29539614]
[1772186295917,3.66430935,86.353,86.311,3.29703925]
[1772186296417,7.09509351,86.37,86.322,3.29703925]
[1772186296607,3.66430935,86.369,86.322,3.29703925]
[1772186297410,3.66430935,86.368,86.322,3.29703925]
[1772186298716,7.09509351,86.38,86.324,3.27090099]
[1772186298920,3.66430935,86.379,86.324,3.27090099]
[1772186299926,3.66430935,86.377,86.33,3.27090099]
[1772186300123,3.43078416,86.37,86.33,3.27090099]
[1772186301521,3.66430935,86.366,86.318,3.28354837]
[1772186302724,3.43078416,86.36,86.318,3.28354837]
[1772186304826,3.66430935,86.359,86.318,3.28354837]
[1772186306323,10.4214,86.358,86.318,3.28354837]
[1772186307225,3.66430935,86.349,86.306,3.28015081]
[1772186307423,3.66430935,86.339,86.293,3.28015081]
[1772186307926,3.43310329,86.33,86.293,3.28015081]
[1772186308126,7.09741264,86.33,86.293,3.28015081]
[1772186308321,3.66430935,86.319,86.273,3.28015081]
[1772186309725,3.66430935,86.319,86.275,3.27397367]
[1772186310919,3.66430935,86.319,86.277,3.23693346]
[1772186312931,3.43310329,86.32,86.279,3.2554676]
[1772186313120,3.43310329,86.33,86.279,3.2554676]
[1772186313324,7.09741264,86.33,86.279,3.2554676]
[1772186313830,3.66430935,86.329,86.279,3.2554676]
[1772186314025,3.66430935,86.329,86.281,3.2554676]
[1772186314227,3.43310329,86.32,86.281,3.2554676]
[1772186315730,3.66430935,86.329,86.283,3.25399794]
[1772186316134,3.43310329,86.32,86.283,3.25399794]
[1772186317424,3.66430935,86.319,86.283,3.25399794]
[1772186320238,3.66430935,86.319,86.285,3.23135649]
[1772186320527,3.64296777,86.329,86.285,3.23135649]
[1772186322529,3.64296777,86.329,86.287,10.4298]
[1772186322834,7.07607106,86.34,86.288,3.19262466]
[1772186323035,185.13658133,86.405,86.288,3.19262466]
[1772186323036,3.43310329,86.33,86.288,3.19262466]
[1772186323632,3.64296777,86.339,86.288,3.19262466]
[1772186324032,3.64296777,86.338,86.29,3.19262466]
[1772186327233,3.64296777,86.338,86.292,13.6147459]
[1772186328033,3.64296777,86.338,86.293,3.1855459]
[1772186328230,3.64296777,86.338,86.295,3.1855459]
[1772186328430,3.64296777,86.349,86.301,3.1855459]
[1772186329940,3.64296777,86.349,86.307,10.4275]
[1772186330939,3.43310329,86.35,86.301,3.1855459]
[1772186330940,3.64296777,86.347,86.301,3.1855459]
[1772186331134,3.43310329,86.34,86.301,3.1855459]
[1772186331736,7.07607106,86.34,86.301,3.1855459]
[1772186332338,3.64296777,86.339,86.301,3.1855459]
[1772186332537,3.64296777,86.339,86.299,10.4285]
[1772186335343,3.64296777,86.339,86.293,3.17127765]
[1772186335543,3.64296777,86.338,86.293,3.17127765]
[1772186335741,3.64296777,86.329,86.293,3.17127765]
[1772186340854,3.64296777,86.327,86.284,3.17231145]
[1772186341157,3.64296777,86.327,86.286,3.17231145]
[1772186341749,3.64296777,86.327,86.293,10.4291]
[1772186341951,3.43310329,86.33,86.294,3.17231145]
[1772186342153,3.64296777,86.339,86.294,3.17231145]
[1772186342956,3.64296777,86.339,86.296,3.13005395]
[1772186343453,3.64296777,86.339,86.299,3.13005395]
[1772186345057,3.64296777,86.339,86.302,10.4281]
[1772186346960,3.64296777,86.339,86.303,3.06682096]
[1772186347552,3.64296777,86.339,86.296,3.06682096]
[1772186348651,3.64296777,86.336,86.296,3.06682096]
[1772186349652,3.64296777,86.336,86.297,13.45699736]